{"text_format":"3","workbook":"xlsx","n_sheets":2,"sheets":["Projektų stebėjimo priemonė","Nustatymas"],"not_rendered":{"defined_names":6},"read":"whole","date_system":"1900"}

{"sheet":"Projektų stebėjimo priemonė","index":0,"n_rows":13,"n_cols":15,"rows_kept":13}
[null,"Projektų stebėjimo priemonė"]
[null,null,"Viršijimo / neįvykdymo procentų vėliavėlė",{"v":0.25,"d":"25%"}]
[]
[null,"Projektas","Kategorija","Kam priskirta","Apytikslė\npradžia","Apytikslė \npabaiga","Apytikslis darbas (valandomis)","Apytikslė trukmė (dienomis)","Faktinė \npradžia","Faktinė\npabaiga","Vėliavėlės piktograma – daugiau / mažiau faktinio darbo (valandomis)","Faktinis darbas (valandomis)","Vėliavėlės piktograma – daugiau / mažiau faktinės trukmės (dienomis)","Faktinė trukmė (dienomis)","Pastabos"]
[null,"1 projektas","1 kategorija","1 darbuotojas",{"$f":"TODAY()-65","v":"2017-08-08"},{"$f":"TODAY()-5","v":"2017-10-07"},210,{"$f":"IF(COUNTA('Projektų stebėjimo priemonė'!$E5,'Projektų stebėjimo priemonė'!$F5)<>2,\"\",DAYS360('Projektų stebėjimo priemonė'!$E5,'Projektų stebėjimo priemonė'!$F5,FALSE))","v":59},{"$f":"TODAY()-65","v":"2017-08-08"},{"$f":"TODAY()","v":"2017-10-12"},{"$f":"IFERROR(IF(ProjektoStebėjimoPriemonė[Faktinis darbas (valandomis)]=0,\"\",IF(ABS((ProjektoStebėjimoPriemonė[[#This Row],[Faktinis darbas (valandomis)]]-ProjektoStebėjimoPriemonė[[#This Row],[Apytikslis darbas (valandomis)]])/ProjektoStebėjimoPriemonė[[#This Row],[Apytikslis darbas (valandomis)]])>VėliavėlėProcentai,1,0)),\"\")","v":1},300,{"$f":"IFERROR(IF(ProjektoStebėjimoPriemonė[Faktinė trukmė (dienomis)]=0,\"\",IF(ABS((ProjektoStebėjimoPriemonė[[#This Row],[Faktinė trukmė (dienomis)]]-ProjektoStebėjimoPriemonė[[#This Row],[Apytikslė trukmė (dienomis)]])/ProjektoStebėjimoPriemonė[[#This Row],[Apytikslė trukmė (dienomis)]])>VėliavėlėProcentai,1,0)),\"\")","v":0},{"$f":"IF(COUNTA('Projektų stebėjimo priemonė'!$I5,'Projektų stebėjimo priemonė'!$J5)<>2,\"\",DAYS360('Projektų stebėjimo priemonė'!$I5,'Projektų stebėjimo priemonė'!$J5,FALSE))","v":64}]
[null,"2 projektas","2 kategorija","4 darbuotojas",{"$f":"TODAY()-41","v":"2017-09-01"},{"$f":"TODAY()-10","v":"2017-10-02"},400,{"$f":"IF(COUNTA('Projektų stebėjimo priemonė'!$E6,'Projektų stebėjimo priemonė'!$F6)<>2,\"\",DAYS360('Projektų stebėjimo priemonė'!$E6,'Projektų stebėjimo priemonė'!$F6,FALSE))","v":31},{"$f":"TODAY()-41","v":"2017-09-01"},{"$f":"TODAY()-7","v":"2017-10-05"},{"$f":"IFERROR(IF(ProjektoStebėjimoPriemonė[Faktinis darbas (valandomis)]=0,\"\",IF(ABS((ProjektoStebėjimoPriemonė[[#This Row],[Faktinis darbas (valandomis)]]-ProjektoStebėjimoPriemonė[[#This Row],[Apytikslis darbas (valandomis)]])/ProjektoStebėjimoPriemonė[[#This Row],[Apytikslis darbas (valandomis)]])>VėliavėlėProcentai,1,0)),\"\")","v":0},390,{"$f":"IFERROR(IF(ProjektoStebėjimoPriemonė[Faktinė trukmė (dienomis)]=0,\"\",IF(ABS((ProjektoStebėjimoPriemonė[[#This Row],[Faktinė trukmė (dienomis)]]-ProjektoStebėjimoPriemonė[[#This Row],[Apytikslė trukmė (dienomis)]])/ProjektoStebėjimoPriemonė[[#This Row],[Apytikslė trukmė (dienomis)]])>VėliavėlėProcentai,1,0)),\"\")","v":0},{"$f":"IF(COUNTA('Projektų stebėjimo priemonė'!$I6,'Projektų stebėjimo priemonė'!$J6)<>2,\"\",DAYS360('Projektų stebėjimo priemonė'!$I6,'Projektų stebėjimo priemonė'!$J6,FALSE))","v":34}]
[null,"3 projektas","1 kategorija","2 darbuotojas",{"$f":"TODAY()-100","v":"2017-07-04"},{"$f":"TODAY()-40","v":"2017-09-02"},500,{"$f":"IF(COUNTA('Projektų stebėjimo priemonė'!$E7,'Projektų stebėjimo priemonė'!$F7)<>2,\"\",DAYS360('Projektų stebėjimo priemonė'!$E7,'Projektų stebėjimo priemonė'!$F7,FALSE))","v":58},{"$f":"TODAY()-100","v":"2017-07-04"},{"$f":"TODAY()-27","v":"2017-09-15"},{"$f":"IFERROR(IF(ProjektoStebėjimoPriemonė[Faktinis darbas (valandomis)]=0,\"\",IF(ABS((ProjektoStebėjimoPriemonė[[#This Row],[Faktinis darbas (valandomis)]]-ProjektoStebėjimoPriemonė[[#This Row],[Apytikslis darbas (valandomis)]])/ProjektoStebėjimoPriemonė[[#This Row],[Apytikslis darbas (valandomis)]])>VėliavėlėProcentai,1,0)),\"\")","v":0},500,{"$f":"IFERROR(IF(ProjektoStebėjimoPriemonė[Faktinė trukmė (dienomis)]=0,\"\",IF(ABS((ProjektoStebėjimoPriemonė[[#This Row],[Faktinė trukmė (dienomis)]]-ProjektoStebėjimoPriemonė[[#This Row],[Apytikslė trukmė (dienomis)]])/ProjektoStebėjimoPriemonė[[#This Row],[Apytikslė trukmė (dienomis)]])>VėliavėlėProcentai,1,0)),\"\")","v":0},{"$f":"IF(COUNTA('Projektų stebėjimo priemonė'!$I7,'Projektų stebėjimo priemonė'!$J7)<>2,\"\",DAYS360('Projektų stebėjimo priemonė'!$I7,'Projektų stebėjimo priemonė'!$J7,FALSE))","v":71}]
[null,"4 projektas","2 kategorija","3 darbuotojas",{"$f":"TODAY()-90","v":"2017-07-14"},{"$f":"TODAY()-80","v":"2017-07-24"},250,{"$f":"IF(COUNTA('Projektų stebėjimo priemonė'!$E8,'Projektų stebėjimo priemonė'!$F8)<>2,\"\",DAYS360('Projektų stebėjimo priemonė'!$E8,'Projektų stebėjimo priemonė'!$F8,FALSE))","v":10},{"$f":"TODAY()-90","v":"2017-07-14"},{"$f":"TODAY()-71","v":"2017-08-02"},{"$f":"IFERROR(IF(ProjektoStebėjimoPriemonė[Faktinis darbas (valandomis)]=0,\"\",IF(ABS((ProjektoStebėjimoPriemonė[[#This Row],[Faktinis darbas (valandomis)]]-ProjektoStebėjimoPriemonė[[#This Row],[Apytikslis darbas (valandomis)]])/ProjektoStebėjimoPriemonė[[#This Row],[Apytikslis darbas (valandomis)]])>VėliavėlėProcentai,1,0)),\"\")","v":0},276,{"$f":"IFERROR(IF(ProjektoStebėjimoPriemonė[Faktinė trukmė (dienomis)]=0,\"\",IF(ABS((ProjektoStebėjimoPriemonė[[#This Row],[Faktinė trukmė (dienomis)]]-ProjektoStebėjimoPriemonė[[#This Row],[Apytikslė trukmė (dienomis)]])/ProjektoStebėjimoPriemonė[[#This Row],[Apytikslė trukmė (dienomis)]])>VėliavėlėProcentai,1,0)),\"\")","v":1},{"$f":"IF(COUNTA('Projektų stebėjimo priemonė'!$I8,'Projektų stebėjimo priemonė'!$J8)<>2,\"\",DAYS360('Projektų stebėjimo priemonė'!$I8,'Projektų stebėjimo priemonė'!$J8,FALSE))","v":18}]
[null,"5 projektas","3 kategorija","2 darbuotojas",{"$f":"TODAY()-90","v":"2017-07-14"},{"$f":"TODAY()-50","v":"2017-08-23"},300,{"$f":"IF(COUNTA('Projektų stebėjimo priemonė'!$E9,'Projektų stebėjimo priemonė'!$F9)<>2,\"\",DAYS360('Projektų stebėjimo priemonė'!$E9,'Projektų stebėjimo priemonė'!$F9,FALSE))","v":39},{"$f":"TODAY()-90","v":"2017-07-14"},{"$f":"TODAY()-44","v":"2017-08-29"},{"$f":"IFERROR(IF(ProjektoStebėjimoPriemonė[Faktinis darbas (valandomis)]=0,\"\",IF(ABS((ProjektoStebėjimoPriemonė[[#This Row],[Faktinis darbas (valandomis)]]-ProjektoStebėjimoPriemonė[[#This Row],[Apytikslis darbas (valandomis)]])/ProjektoStebėjimoPriemonė[[#This Row],[Apytikslis darbas (valandomis)]])>VėliavėlėProcentai,1,0)),\"\")","v":0},310,{"$f":"IFERROR(IF(ProjektoStebėjimoPriemonė[Faktinė trukmė (dienomis)]=0,\"\",IF(ABS((ProjektoStebėjimoPriemonė[[#This Row],[Faktinė trukmė (dienomis)]]-ProjektoStebėjimoPriemonė[[#This Row],[Apytikslė trukmė (dienomis)]])/ProjektoStebėjimoPriemonė[[#This Row],[Apytikslė trukmė (dienomis)]])>VėliavėlėProcentai,1,0)),\"\")","v":0},{"$f":"IF(COUNTA('Projektų stebėjimo priemonė'!$I9,'Projektų stebėjimo priemonė'!$J9)<>2,\"\",DAYS360('Projektų stebėjimo priemonė'!$I9,'Projektų stebėjimo priemonė'!$J9,FALSE))","v":45}]
[null,"6 projektas","4 kategorija","4 darbuotojas",{"$f":"TODAY()-60","v":"2017-08-13"},{"$f":"TODAY()-50","v":"2017-08-23"},500,{"$f":"IF(COUNTA('Projektų stebėjimo priemonė'!$E10,'Projektų stebėjimo priemonė'!$F10)<>2,\"\",DAYS360('Projektų stebėjimo priemonė'!$E10,'Projektų stebėjimo priemonė'!$F10,FALSE))","v":10},{"$f":"TODAY()-60","v":"2017-08-13"},{"$f":"TODAY()-45","v":"2017-08-28"},{"$f":"IFERROR(IF(ProjektoStebėjimoPriemonė[Faktinis darbas (valandomis)]=0,\"\",IF(ABS((ProjektoStebėjimoPriemonė[[#This Row],[Faktinis darbas (valandomis)]]-ProjektoStebėjimoPriemonė[[#This Row],[Apytikslis darbas (valandomis)]])/ProjektoStebėjimoPriemonė[[#This Row],[Apytikslis darbas (valandomis)]])>VėliavėlėProcentai,1,0)),\"\")","v":0},510,{"$f":"IFERROR(IF(ProjektoStebėjimoPriemonė[Faktinė trukmė (dienomis)]=0,\"\",IF(ABS((ProjektoStebėjimoPriemonė[[#This Row],[Faktinė trukmė (dienomis)]]-ProjektoStebėjimoPriemonė[[#This Row],[Apytikslė trukmė (dienomis)]])/ProjektoStebėjimoPriemonė[[#This Row],[Apytikslė trukmė (dienomis)]])>VėliavėlėProcentai,1,0)),\"\")","v":1},{"$f":"IF(COUNTA('Projektų stebėjimo priemonė'!$I10,'Projektų stebėjimo priemonė'!$J10)<>2,\"\",DAYS360('Projektų stebėjimo priemonė'!$I10,'Projektų stebėjimo priemonė'!$J10,FALSE))","v":15}]
[null,"7 projektas","5 kategorija","1 darbuotojas",{"$f":"TODAY()-44","v":"2017-08-29"},{"$f":"TODAY()-20","v":"2017-09-22"},750,{"$f":"IF(COUNTA('Projektų stebėjimo priemonė'!$E11,'Projektų stebėjimo priemonė'!$F11)<>2,\"\",DAYS360('Projektų stebėjimo priemonė'!$E11,'Projektų stebėjimo priemonė'!$F11,FALSE))","v":23},{"$f":"TODAY()-44","v":"2017-08-29"},{"$f":"TODAY()-15","v":"2017-09-27"},{"$f":"IFERROR(IF(ProjektoStebėjimoPriemonė[Faktinis darbas (valandomis)]=0,\"\",IF(ABS((ProjektoStebėjimoPriemonė[[#This Row],[Faktinis darbas (valandomis)]]-ProjektoStebėjimoPriemonė[[#This Row],[Apytikslis darbas (valandomis)]])/ProjektoStebėjimoPriemonė[[#This Row],[Apytikslis darbas (valandomis)]])>VėliavėlėProcentai,1,0)),\"\")","v":0},790,{"$f":"IFERROR(IF(ProjektoStebėjimoPriemonė[Faktinė trukmė (dienomis)]=0,\"\",IF(ABS((ProjektoStebėjimoPriemonė[[#This Row],[Faktinė trukmė (dienomis)]]-ProjektoStebėjimoPriemonė[[#This Row],[Apytikslė trukmė (dienomis)]])/ProjektoStebėjimoPriemonė[[#This Row],[Apytikslė trukmė (dienomis)]])>VėliavėlėProcentai,1,0)),\"\")","v":0},{"$f":"IF(COUNTA('Projektų stebėjimo priemonė'!$I11,'Projektų stebėjimo priemonė'!$J11)<>2,\"\",DAYS360('Projektų stebėjimo priemonė'!$I11,'Projektų stebėjimo priemonė'!$J11,FALSE))","v":28}]
[null,"8 projektas","2 kategorija","1 darbuotojas",{"$f":"TODAY()-39","v":"2017-09-03"},{"$f":"TODAY()","v":"2017-10-12"},450,{"$f":"IF(COUNTA('Projektų stebėjimo priemonė'!$E12,'Projektų stebėjimo priemonė'!$F12)<>2,\"\",DAYS360('Projektų stebėjimo priemonė'!$E12,'Projektų stebėjimo priemonė'!$F12,FALSE))","v":39},{"$f":"TODAY()-45","v":"2017-08-28"},{"$f":"TODAY()-5","v":"2017-10-07"},{"$f":"IFERROR(IF(ProjektoStebėjimoPriemonė[Faktinis darbas (valandomis)]=0,\"\",IF(ABS((ProjektoStebėjimoPriemonė[[#This Row],[Faktinis darbas (valandomis)]]-ProjektoStebėjimoPriemonė[[#This Row],[Apytikslis darbas (valandomis)]])/ProjektoStebėjimoPriemonė[[#This Row],[Apytikslis darbas (valandomis)]])>VėliavėlėProcentai,1,0)),\"\")","v":0},430,{"$f":"IFERROR(IF(ProjektoStebėjimoPriemonė[Faktinė trukmė (dienomis)]=0,\"\",IF(ABS((ProjektoStebėjimoPriemonė[[#This Row],[Faktinė trukmė (dienomis)]]-ProjektoStebėjimoPriemonė[[#This Row],[Apytikslė trukmė (dienomis)]])/ProjektoStebėjimoPriemonė[[#This Row],[Apytikslė trukmė (dienomis)]])>VėliavėlėProcentai,1,0)),\"\")","v":0},{"$f":"IF(COUNTA('Projektų stebėjimo priemonė'!$I12,'Projektų stebėjimo priemonė'!$J12)<>2,\"\",DAYS360('Projektų stebėjimo priemonė'!$I12,'Projektų stebėjimo priemonė'!$J12,FALSE))","v":39}]
[null,"9 projektas","4 kategorija","1 darbuotojas","2016-02-05","2016-06-09",250,{"$f":"IF(COUNTA('Projektų stebėjimo priemonė'!$E13,'Projektų stebėjimo priemonė'!$F13)<>2,\"\",DAYS360('Projektų stebėjimo priemonė'!$E13,'Projektų stebėjimo priemonė'!$F13,FALSE))","v":124},"2016-03-05","2016-05-05",{"$f":"IFERROR(IF(ProjektoStebėjimoPriemonė[Faktinis darbas (valandomis)]=0,\"\",IF(ABS((ProjektoStebėjimoPriemonė[[#This Row],[Faktinis darbas (valandomis)]]-ProjektoStebėjimoPriemonė[[#This Row],[Apytikslis darbas (valandomis)]])/ProjektoStebėjimoPriemonė[[#This Row],[Apytikslis darbas (valandomis)]])>VėliavėlėProcentai,1,0)),\"\")","v":0},200,{"$f":"IFERROR(IF(ProjektoStebėjimoPriemonė[Faktinė trukmė (dienomis)]=0,\"\",IF(ABS((ProjektoStebėjimoPriemonė[[#This Row],[Faktinė trukmė (dienomis)]]-ProjektoStebėjimoPriemonė[[#This Row],[Apytikslė trukmė (dienomis)]])/ProjektoStebėjimoPriemonė[[#This Row],[Apytikslė trukmė (dienomis)]])>VėliavėlėProcentai,1,0)),\"\")","v":1},{"$f":"IF(COUNTA('Projektų stebėjimo priemonė'!$I13,'Projektų stebėjimo priemonė'!$J13)<>2,\"\",DAYS360('Projektų stebėjimo priemonė'!$I13,'Projektų stebėjimo priemonė'!$J13,FALSE))","v":60}]

{"sheet":"Nustatymas","index":1,"n_rows":10,"n_cols":3,"rows_kept":10}
[null,"Nustatymas"]
[]
[]
[null,"Kategorijos pavadinimas","Darbuotojo vardas"]
[null,"1 kategorija","1 darbuotojas"]
[null,"2 kategorija","2 darbuotojas"]
[null,"3 kategorija","3 darbuotojas"]
[null,"4 kategorija","4 darbuotojas"]
[null,"5 kategorija","5 darbuotojas"]
[null,"6 kategorija","6 darbuotojas"]